lending/lending_fUSD_20240410
["ID","MTS","AMOUNT","RATE_DAILY","PERIOD"]
[322073321,1712742653786,-484.17508,0.00035148,2]
[322073322,1712742653795,-156.08416384,0.00035216,7]
[322073323,1712742653804,-1000.16,0.0003522,2]
[322073324,1712742653814,-210.28629499,0.00035234,7]
[322073325,1712742653823,-387.78,0.00035288,15]
[322073326,1712742653832,-154.29187264,0.00035297,12]
[322073327,1712742653841,-408.22,0.000353,2]
[322073328,1712742653851,-186.56,0.000353,2]
[322073329,1712742653862,-277.70345871,0.00035306,2]
[322073330,1712742653872,-522.0,0.00035342,2]
[322073331,1712742653881,-154.98939764,0.00035363,7]
[322073332,1712742653890,-153.88972214,0.00035393,7]
[322073333,1712742653899,-4147.19518115,0.000354,3]
[322073334,1712742653908,-220399.80684831,0.000354,2]
[322073335,1712742653917,-126072.47854146,0.000354,2]
[322073336,1712742654087,-4700.70000003,0.000354,2]
[322073337,1712742654110,-1000.0,0.00020499,2]
[322073338,1712742654120,-433.72952,0.000354,2]
[322073339,1712742654131,-601.015996,0.000354,2]
[322073340,1712742654142,-346.11167018,0.000354,2]
[322073341,1712742654155,-527.9098895,0.000354,2]
[322073342,1712742654240,-150.0,0.00029464,2]
[322073343,1712742654250,-150.0,0.00029479,2]
[322073344,1712742654260,-150.0,0.00029604,2]
[322073345,1712742654269,-150.0,0.00029678,2]
[322073346,1712742654278,-125.32852871,0.00030146,2]
[322073347,1712742654294,-24.67147129,0.00030146,2]
[322073348,1712742654303,-150.0,0.00030273,2]
[322073349,1712742654313,-150.0,0.00030371,2]
[322073350,1712742654323,-150.0,0.00030725,2]
[322073351,1712742654332,-150.0,0.00031188,2]
[322073352,1712742654341,-150.0,0.00031399,2]
[322073353,1712742654350,-150.0,0.00031532,2]
[322073354,1712742654360,-150.0,0.0003167,2]
[322073355,1712742654370,-150.0,0.0003175,2]
[322073356,1712742654380,-1000.0,0.00032,2]
[322073357,1712742654389,-295.0346,0.000321,2]
[322073358,1712742654399,-295.0346,0.000321,2]
[322073359,1712742654408,-141057.60020931,0.000354,2]
[322073360,1712742654430,-150.0,0.00031367,2]
[322073361,1712742654440,-150.0,0.00031894,2]
[322073362,1712742654449,-11297.23638378,0.000354,2]
[322073363,1712742654462,-288859.40983212,0.000354,2]
[322073364,1712742654473,-10709.67211139,0.000354,2]
[322073365,1712742654484,-828.856,0.000354,2]
[322073366,1712742654503,-150.0,0.00031266,2]
[322073367,1712742654513,-150.0,0.00031624,2]
[322073368,1712742654522,-24502.01772927,0.000354,2]
[322073369,1712742672543,1461.74832526,0.000154,2]
[322073370,1712742672566,2000.0,0.000154,2]
[322073371,1712742672590,822.55243457,0.000154,2]
[322073372,1712742681795,751.92434253,9e-05,2]
[322073373,1712742696185,572.15838706,0.0003,30]
[322073374,1712742714129,572.15838706,0.0003,30]
[322073375,1712742717156,2850.0,6.94e-05,2]
[322073377,1712742736136,572.15838706,0.0003,30]
[322073378,1712742741762,288.5292445,6.94e-05,2]
[322073379,1712742749915,259.23294087,0.00015,2]
[322073380,1712742752147,572.15838706,0.0003,30]
[322073381,1712742754081,25000.0,0.00031797,30]
[322073382,1712742761423,4771.49618278,0.00031797,30]
[322073383,1712742768145,572.15838706,0.0003,30]
[322073384,1712742784143,572.15838706,0.0003,30]
[322073385,1712742804154,554.5651577,0.0003,30]
[322073387,1712742902897,150.5,0.0002079,15]
[322073388,1712742902934,150.5,0.0002079,15]
[322073389,1712742903061,150.5,0.0002079,15]
[322073390,1712742903188,150.5,0.0002079,15]
[322073391,1712742903249,152.33,0.0002079,15]
[322073392,1712742903416,150.5,0.0002079,15]
[322073393,1712742903445,150.5,0.0002078,15]
[322073394,1712742903474,168.0,0.0002079,15]
[322073395,1712742903504,150.5,0.0002078,15]
[322073396,1712742903535,152.08,0.0002078,15]
[322073397,1712742903563,150.5,0.0002079,15]
[322073398,1712742903651,150.5,0.0002079,15]
[322073399,1712742903681,429.0,0.0002079,15]
[322073400,1712742903714,153.69,0.0002078,15]
[322073401,1712742903784,155.54,0.0002079,15]
[322073402,1712742903906,212.24,0.0002078,15]
[322073403,1712742903935,150.5,0.0002079,15]
[322073404,1712742903988,168.0,0.0002078,15]
[322073405,1712742904025,264.39,0.0002077,15]
[322073406,1712742904056,150.5,0.0002079,15]
[322073407,1712742904085,150.5,0.0002079,15]
[322073408,1712742904114,290.66,0.0002078,15]
[322073409,1712742904142,150.5,0.0002077,15]
[322073410,1712742904171,150.5,0.0002078,15]
[322073411,1712742904201,429.0,0.0002078,15]
[322073412,1712742904453,150.5,0.0002078,15]
[322073413,1712742904505,150.5,0.0002078,15]
[322073414,1712742904537,168.0,0.0002077,15]
[322073415,1712742904565,150.5,0.0002078,15]
[322073416,1712742904594,150.5,0.00020989,15]
[322073417,1712742904622,152.55,0.0002077,15]
[322073418,1712742904651,429.0,0.0002077,15]
[322073419,1712742904940,150.5,0.0002077,15]
[322073420,1712742904988,2928.0,0.0002079,15]
[322073421,1712742905019,151.01,0.0002077,15]
[322073422,1712742905053,151.53,0.0002077,15]
[322073423,1712742905085,168.0,0.00020989,15]
[322073424,1712742905115,150.5,0.00020979,15]
[322073425,1712742905147,429.0,0.00020989,15]
[322073426,1712742905407,150.5,0.00020989,15]
[322073427,1712742905477,2928.0,0.0002078,15]
[322073428,1712742905506,168.0,0.00020979,15]
[322073429,1712742905554,174.5,0.00020969,15]
[322073430,1712742905628,429.0,0.00020979,15]
[322073431,1712742905892,150.5,0.00020979,15]
[322073432,1712742905973,2928.0,0.0002077,15]
[322073433,1712742906002,168.0,0.00020969,15]
[322073434,1712742906101,429.0,0.00020969,15]
[322073435,1712742906448,150.5,0.00020969,15]
[322073436,1712742906480,2928.0,0.00020989,15]
[322073437,1712742906519,168.0,0.00020989,15]
[322073438,1712742906568,429.0,0.00020989,15]
[322073439,1712742907006,168.0,0.00020979,15]
[322073440,1712742907037,2928.0,0.00020979,15]
[322073441,1712742907211,150.5,0.00020989,15]
[322073442,1712742907245,429.0,0.00020979,15]
[322073443,1712742907486,2928.0,0.00020969,15]
[322073444,1712742907779,177.12,0.00020979,15]
[322073445,1712742908236,2928.0,0.00020989,15]
[322073446,1712742909479,2928.0,0.00020979,15]
[322073447,1712742927053,1040.72,0.0003,90]
[322073448,1712742974755,328.26,0.00017538,2]
[322073449,1712743023502,2121.0,0.0002079,15]
[322073450,1712743024032,2121.0,0.0002078,15]
[322073451,1712743024474,1187.57394011,0.0002077,15]
[322073452,1712743024498,933.42605989,0.0002077,15]
[322073453,1712743024964,2121.0,0.00020989,15]
[322073454,1712743025625,586.0,0.0002079,15]
[322073455,1712743026007,2121.0,0.00020979,15]
[322073456,1712743026098,586.0,0.0002078,15]
[322073457,1712743026479,2121.0,0.00020969,15]
[322073458,1712743026585,586.0,0.0002077,15]
[322073459,1712743026973,2121.0,0.00020989,15]
[322073460,1712743027278,586.0,0.00020989,15]
[322073461,1712743027492,2121.0,0.00020979,15]
[322073462,1712743027766,586.0,0.00020979,15]
[322073463,1712743028286,586.0,0.00020969,15]
[322073464,1712743028808,586.0,0.00020989,15]
[322073465,1712743029541,586.0,0.00020979,15]
[322073466,1712743098622,25000.0,0.0003,25]
[322073467,1712743120606,12579.17956838,0.00017976,2]
[322073468,1712743126334,161.5005391,0.00017975,2]
[322073469,1712743135745,161.2,0.00029309,120]
[322073470,1712743145278,150.5,0.0002079,15]
[322073471,1712743145751,150.5,0.0002078,15]
[322073472,1712743146221,150.5,0.0002077,15]
[322073473,1712743146756,150.5,0.00020989,15]
[322073474,1712743148736,150.5,0.00020979,15]
[322073475,1712743149475,150.5,0.00020969,15]
[322073476,1712743150008,274.16,0.00020989,15]
[322073477,1712743265438,424.0,0.0002079,15]
[322073478,1712743267265,424.0,0.0002078,15]
[322073479,1712743267775,424.0,0.0002077,15]
[322073480,1712743268497,424.0,0.00020989,15]
[322073481,1712743269018,424.0,0.00020979,15]
[322073482,1712743269707,424.0,0.00020969,15]
[322073483,1712743270253,424.0,0.00020989,15]
[322073484,1712743270724,424.0,0.00020979,15]
[322073485,1712743363376,170.18284866,5e-05,2]
[322073486,1712743414934,360.59772563,5e-05,2]
[322073487,1712743428945,360.59772563,5e-05,2]
[322073488,1712743444948,341.77855433,5e-05,2]
[322073490,1712743450274,311.84,0.00016981,2]
[322073491,1712743504498,150.5,0.0002079,15]
[322073492,1712743504974,150.5,0.0002078,15]
[322073493,1712743505447,150.5,0.0002077,15]
[322073494,1712743505932,150.5,0.00020989,15]
[322073495,1712743506407,248.86,0.00020979,15]
[322073496,1712743518887,1034.48414742,0.00016981,2]
[322073497,1712743519411,155.0,0.00016981,2]
[322073498,1712743519675,864.81971647,0.00016981,2]
[322073499,1712743521080,155.0,0.00016981,2]
[322073500,1712743522862,407.76106347,0.00016981,2]
[322073501,1712743523045,323.32008066,0.00016981,2]
[322073502,1712743524103,365.12124712,0.00016981,2]
[322073503,1712743527019,42516.19534711,0.00016981,2]
[322073504,1712743527881,19639.62933968,0.00016981,2]
[322073505,1712743529464,941.37199701,0.00016981,2]
[322073506,1712743530059,952.09779642,0.00016132,2]
[322073507,1712743532093,1993.74021181,0.00016981,2]
[322073508,1712743534791,588.81196678,0.00016981,2]
[322073509,1712743535393,185.87047986,0.00016981,2]
[322073510,1712743535585,200.45993437,0.00016981,2]
[322073511,1712743537792,216.19910986,0.00016981,2]
[322073512,1712743538329,864.81971647,0.00016981,2]
[322073513,1712743538529,365.12124712,0.00016981,2]
[322073514,1712743541878,19639.62933968,0.00016981,2]
[322073515,1712743544088,1993.74021181,0.00016981,2]
[322073516,1712743545031,42516.19534711,0.00016981,2]
[322073517,1712743545646,941.37199701,0.00016981,2]
[322073518,1712743547046,323.32008066,0.00016981,2]
[322073519,1712743550128,952.09779642,0.00016132,2]
[322073520,1712743556142,365.12124712,0.00016981,2]
[322073521,1712743557698,864.81971647,0.00016981,2]
[322073522,1712743560089,1038.73865035,0.00016132,2]
[322073523,1712743563437,941.37199701,0.00016132,2]
[322073524,1712743563878,19639.62933968,0.00016132,2]
[322073525,1712743567072,323.32008066,0.00016132,2]
[322073526,1712743568103,952.09779642,0.00015325,2]
[322073527,1712743569043,42516.19534711,0.00016132,2]
[322073528,1712743573220,446.604337,0.00017956,2]
[322073529,1712743578095,1038.73865035,0.00016132,2]
[322073530,1712743578124,362.11348898,0.00016132,2]
[322073531,1712743579445,941.37199701,0.00016132,2]
[322073532,1712743579692,864.81971647,0.00016132,2]
[322073533,1712743583052,323.32008066,0.00016132,2]
[322073534,1712743585040,42516.19534711,0.00016132,2]
[322073535,1712743585891,19639.62933968,0.00016132,2]
[322073536,1712743590107,952.09779642,0.00015325,2]
[322073537,1712743596096,1038.73865035,0.00016132,2]
[322073538,1712743597731,864.81971647,0.00016132,2]
[322073539,1712743597772,941.37199701,0.00016132,2]
[322073540,1712743599057,323.32008066,0.00016132,2]
[322073541,1712743601078,42516.19534711,0.00016132,2]
[322073542,1712743605886,3577.88720557,0.00016132,2]
[322073543,1712743610100,973.09176276,0.00015325,2]
[322073544,1712743613692,573.67828755,0.00016132,2]
[322073545,1712743614108,1038.73865035,0.00016132,2]
[322073546,1712743617441,941.34974677,0.00016132,2]
[322073547,1712743619055,250.75685437,0.00016132,2]
[322073548,1712743623038,33689.02282629,0.00016132,2]
[322073549,1712743624947,150.5,0.0002079,15]
[322073550,1712743625538,150.5,0.0002078,15]
[322073551,1712743625630,150.5,0.0002079,15]
[322073552,1712743626019,150.5,0.0002077,15]
[322073553,1712743626111,194.82,0.0002078,15]
[322073554,1712743626611,150.5,0.00020989,15]
[322073555,1712743627296,260.32,0.00020979,15]
[322073556,1712743636109,1038.73865035,0.00016132,2]
[322073557,1712743652108,1038.73865035,0.00016132,2]
[322073558,1712743660925,20134.2678214,0.00016132,2]
[322073559,1712743668117,1038.73865035,0.00016132,2]
[322073560,1712743674932,877.50609178,0.00016132,2]
[322073561,1712743684239,1038.73865035,0.00016132,2]
[322073562,1712743687627,25000.0,0.0003,25]
[322073563,1712743700104,1038.73865035,0.00016132,2]
[322073564,1712743716107,843.21418283,0.00016132,2]
[322073565,1712743737037,150.0,0.00021999,10]
[322073578,1712743831437,-1273.34585803,0.00018033,2]
[322073580,1712743831492,-1886.53382014,0.00018033,2]
[322073581,1712743831501,-1000.0,0.00018034,2]
[322073582,1712743831511,-500.0,0.00018034,2]
[322073583,1712743831520,-1239.69945364,0.00018034,2]
[322073584,1712743831714,-748.53241802,0.00018034,2]
[322073585,1712743831725,-1291.37360342,0.00018034,2]
[322073586,1712743831734,-150.0,0.00018036,2]
[322073587,1712743831743,-3790.85905264,0.00018036,2]
[322073588,1712743831752,-744.51738627,0.0001807,2]
[322073589,1712743831762,-156.55076502,0.00018356,2]
[322073590,1712743831771,-499.99,0.00018356,2]
[322073591,1712743831780,-155.30252456,0.00018356,2]
[322073592,1712743831791,-1155.4,0.00018632,2]
[322073593,1712743831801,-223.83,0.00018648,2]
[322073594,1712743831810,-136.74435518,0.00018648,2]
[322073595,1712743831822,-1167.58965611,0.00018648,2]
[322073596,1712743831834,-1221.78598871,0.00018648,2]
[322073597,1712743831843,-4587.61411129,0.00018722,2]
[322073598,1712743831854,-9674.5,0.00018722,2]
[322073599,1712743831865,-9637.88588871,0.00018722,2]
[322073600,1712743831875,-192.82,0.00018891,2]
[322073601,1712743831885,-1000.0,0.00018904,2]
[322073602,1712743831894,-156.65,0.00019041,2]
[322073603,1712743831904,-156.65,0.00019103,2]
[322073604,1712743831913,-156.65,0.00019165,2]
[322073605,1712743831923,-1500.0,0.00019178,2]
[322073606,1712743831932,-2900.0,0.00019178,2]
[322073607,1712743831941,-156.65,0.00019227,2]
[322073608,1712743831951,-311.84,0.00019245,2]
[322073609,1712743831961,-156.65,0.00019289,2]
[322073610,1712743831970,-156.65,0.00019351,2]
[322073611,1712743831979,-156.65,0.00019413,2]
[322073612,1712743831990,-156.65,0.00019475,2]
[322073613,1712743831999,-156.65,0.00019537,2]
[322073614,1712743832009,-161.2,0.0001954,2]
[322073615,1712743832018,-180.97,0.00019595,2]
[322073616,1712743832028,-156.65,0.000196,2]
[322073617,1712743832037,-156.65,0.00019662,2]
[322073618,1712743832048,-156.65,0.00019724,2]
[322073619,1712743832057,-156.65,0.00019786,2]
[322073620,1712743832068,-2026.10708936,0.00019805,2]
[322073621,1712743832077,-1786.02702194,0.00019815,2]
[322073622,1712743832100,-2457.45788157,0.00019815,2]
[322073623,1712743832109,-210.0,0.00019839,2]
[322073624,1712743832119,-156.65,0.00019848,2]
[322073625,1712743832128,-1000.0,0.00019852,2]
[322073626,1712743832138,-156.65,0.0001991,2]
[322073627,1712743832147,-156.65,0.00019972,2]
[322073628,1712743832156,-156.65,0.00020034,2]
[322073629,1712743832166,-167.49,0.00020123,2]
[322073630,1712743832175,-895.7333,0.00020297,2]
[322073631,1712743832185,-772.4074,0.00020297,2]
[322073632,1712743832194,-590.4969,0.00020297,2]
[322073633,1712743832203,-465.35220703,0.00020298,2]
[322073634,1712743832213,-2600.99165938,0.00020298,2]
[322073635,1712743832223,-1697.15256134,0.00020298,2]
[322073636,1712743832237,-465.35220694,0.00020365,2]
[322073637,1712743832246,-2600.99165934,0.00020365,2]
[322073638,1712743832255,-1697.15256129,0.00020384,2]
[322073639,1712743832265,-220.23863971,0.00020388,2]
[322073640,1712743832274,-246.0243139,0.00020395,2]
[322073641,1712743832283,-7505.71900801,0.00020395,2]
[322073642,1712743832295,-155.0,0.00020395,2]
[322073643,1712743832305,-302.0,0.00020395,2]
[322073644,1712743832313,-182.25389863,0.00020396,2]
[322073645,1712743832322,-500.0,0.00020396,2]
[322073646,1712743832332,-2423.95,0.00020396,2]
[322073647,1712743832341,-300.0,0.00020397,2]
[322073648,1712743832351,-443002.70095131,0.00020397,2]
[322073649,1712743832360,-95206.25887,0.00020398,2]
[322073650,1712743832369,-3790.3544,0.000204,2]
[322073651,1712743832378,-213.0,0.000204,2]
[322073652,1712743832387,-465.35220694,0.00020432,2]
[322073653,1712743832397,-2600.99165934,0.00020432,2]
[322073654,1712743832408,-230.9915,0.00020447,2]
[322073655,1712743832417,-1697.15256129,0.0002047,2]
[322073656,1712743832427,-6898.73902465,0.00020496,2]
[322073657,1712743832437,-465.35220694,0.00020499,2]
[322073658,1712743832446,-2600.99165934,0.00020499,2]
[322073659,1712743832455,-443.18970024,0.00020499,2]
[322073660,1712743832465,-568.18736214,0.00020499,2]
[322073661,1712743832475,-283.04530109,0.00020499,2]
[322073662,1712743832484,-522.74695704,0.00020499,2]
[322073663,1712743832494,-586.0,0.00020547,2]
[322073664,1712743832503,-524.0,0.00020547,2]
[322073665,1712743832512,-1697.15256129,0.00020556,2]
[322073666,1712743832522,-465.35220694,0.00020566,2]
[322073667,1712743832531,-2600.99165934,0.00020566,2]
[322073668,1712743832542,-25107.1778,0.000206,2]
[322073669,1712743832551,-7500.0,0.000206,2]
[322073670,1712743832560,-465.35220694,0.00020632,2]
[322073671,1712743832570,-2600.99165934,0.00020632,2]
[322073672,1712743832579,-1697.15256129,0.00020642,2]
[322073673,1712743832589,-500.0,0.0002067,2]
[322073674,1712743832598,-2423.95,0.0002067,2]
[322073675,1712743832608,-465.35220694,0.00020699,2]
[322073676,1712743832617,-2600.99165934,0.00020699,2]
[322073677,1712743832627,-170.55362329,0.000207,2]
[322073678,1712743832636,-179.02628782,0.000207,2]
[322073679,1712743832646,-8666.6205556,0.000207,2]
[322073680,1712743832655,-155.85557101,0.000207,2]
[322073681,1712743832664,-192.1189982,0.000207,2]
[322073682,1712743832674,-3692.2296138,0.000207,2]
[322073683,1712743832684,-1308.91879724,0.000207,2]
[322073684,1712743832693,-935.02252239,0.000207,2]
[322073685,1712743832703,-935.02252239,0.000207,2]
[322073686,1712743832712,-935.02252239,0.000207,2]
[322073687,1712743832722,-935.02252239,0.000207,2]
[322073688,1712743832731,-935.02252239,0.000207,2]
[322073689,1712743832740,-935.02252239,0.000207,2]
[322073690,1712743832749,-935.02252239,0.000207,2]
[322073691,1712743832759,-935.02252239,0.000207,2]
[322073692,1712743832768,-935.02252239,0.000207,2]
[322073693,1712743832777,-935.02252239,0.000207,2]
[322073694,1712743832786,-935.02252239,0.000207,2]
[322073695,1712743832797,-935.02252239,0.000207,2]
[322073696,1712743832806,-370.86432007,0.000207,2]
[322073697,1712743832816,-935.02252239,0.000207,2]
[322073698,1712743832826,-935.02252239,0.000207,2]
[322073699,1712743832836,-935.02252239,0.000207,2]
[322073700,1712743832845,-935.02252239,0.000207,2]
[322073701,1712743832855,-935.02252239,0.000207,2]
[322073702,1712743832864,-935.02252239,0.000207,2]
[322073703,1712743832874,-935.02252239,0.000207,2]
[322073704,1712743832883,-935.02252239,0.000207,2]
[322073705,1712743832892,-935.02252239,0.000207,2]
[322073706,1712743832901,-935.02252239,0.000207,2]
[322073707,1712743832910,-935.02252239,0.000207,2]
[322073708,1712743832920,-935.02252239,0.000207,2]
[322073709,1712743832929,-935.02252239,0.000207,2]
[322073710,1712743832939,-935.02252239,0.000207,2]
[322073711,1712743832949,-935.02252239,0.000207,2]
[322073712,1712743832958,-935.02252239,0.000207,2]
[322073713,1712743832968,-935.02252239,0.000207,2]
[322073714,1712743832977,-935.02252239,0.000207,2]
[322073715,1712743832987,-935.02252239,0.000207,2]
[322073716,1712743832996,-935.02252239,0.000207,2]
[322073717,1712743833006,-935.02252239,0.000207,2]
[322073718,1712743833015,-935.02252239,0.000207,2]
[322073719,1712743833024,-935.02252239,0.000207,2]
[322073720,1712743833034,-935.02252239,0.000207,2]
[322073721,1712743833044,-935.02252239,0.000207,2]
[322073722,1712743833054,-935.02252239,0.000207,2]
[322073723,1712743833063,-935.02252239,0.000207,2]
[322073724,1712743833072,-935.02252239,0.000207,2]
[322073725,1712743833082,-935.02252239,0.000207,2]
[322073726,1712743833091,-935.02252239,0.000207,2]
[322073727,1712743833101,-935.02252239,0.000207,2]
[322073728,1712743833110,-935.02252239,0.000207,2]
[322073729,1712743833120,-935.02252239,0.000207,2]
[322073730,1712743833129,-935.02252239,0.000207,2]
[322073731,1712743833139,-935.02252239,0.000207,2]
[322073732,1712743833148,-935.02252239,0.000207,2]
[322073733,1712743833158,-935.02252239,0.000207,2]
[322073734,1712743833167,-935.02252239,0.000207,2]
[322073735,1712743833176,-1697.15256129,0.00020728,2]
[322073736,1712743833185,-465.35220694,0.00020766,2]
[322073737,1712743833195,-2600.99165934,0.00020766,2]
[322073738,1712743833205,-179.0262878,0.00020767,2]
[322073739,1712743833215,-299.98331112,0.00020788,2]
[322073740,1712743833225,-272.24162905,0.00020799,2]
[322073741,1712743833237,-538.45440108,0.00020799,2]
[322073742,1712743833247,-366.2868281,0.00020799,2]
[322073743,1712743833256,-2910.50023672,0.00020799,2]
[322073744,1712743833266,-200.98048918,0.00020799,2]
[322073745,1712743833275,-500.0,0.00020799,2]
[322073746,1712743833285,-206843.26442273,0.000208,2]
[322073747,1712743833295,-111876.08589741,0.000208,2]
[322073748,1712743833313,-7173.091763,0.000208,2]
[322073749,1712743833324,-281.22987573,0.000208,2]
[322073750,1712743833336,-921.16152554,0.000208,2]
[322073751,1712743833347,-187257.41069214,0.000208,2]
[322073752,1712743833359,-3413.46256044,0.000208,2]
[322073753,1712743833382,-529.04721068,0.000208,2]
[322073754,1712743833392,-10732.56115468,0.000208,2]
[322073755,1712743833404,-287.96200002,0.000208,2]
[322073756,1712743833420,-4845.53786295,0.000208,2]
[322073791,1712743837625,-161.5005391,0.00018032,2]
[322073792,1712743837636,-502.9994609,0.00020297,2]
[322073793,1712743837755,-1692.4753391,0.00020297,2]
[322073794,1712743837766,-324.5389421,0.000208,2]
[322073795,1712743837778,-281137.00386401,0.000208,2]
[322073796,1712743837790,-429282.56736828,0.000208,2]
[322073797,1712743838281,-1498.42651861,0.000208,2]
[322073798,1712743838294,-1299140.66859999,0.000208,2]
[322073799,1712743838304,-39944.8804,0.000208,2]
[322073800,1712743838315,-100000.0,0.000208,2]
[322073801,1712743838325,-326.0933,0.000208,2]
[322073802,1712743838335,-3692.2296138,0.000208,2]
[322073803,1712743838345,-1308.91879723,0.000208,2]
[322073804,1712743838356,-370.86432006,0.000208,2]
[322073805,1712743838366,-1697.15256129,0.00020814,2]
[322073806,1712743838376,-465.35220694,0.00020833,2]
[322073807,1712743838386,-2600.99165934,0.00020833,2]
[322073808,1712743838395,-179.0262878,0.00020833,2]
[322073809,1712743838406,-173.75,0.00020842,2]
[322073810,1712743838416,-200.47552783,0.00020874,2]
[322073811,1712743838425,-500.0,0.00020899,2]
[322073812,1712743838435,-1260579.11515174,0.000209,3]
[322073813,1712743838444,-699.47,0.000209,2]
[322073814,1712743838454,-858.03,0.000209,2]
[322073815,1712743838463,-179.0262878,0.000209,2]
[322073816,1712743838472,-465.35220694,0.000209,2]
[322073817,1712743838482,-2600.99165934,0.000209,2]
[322073818,1712743838491,-1697.15256129,0.000209,2]
[322073819,1712743838500,-3692.2296138,0.000209,2]
[322073820,1712743838509,-1308.91879723,0.000209,2]
[322073821,1712743838519,-370.86432006,0.000209,2]
[322073822,1712743838528,-587.25502566,0.00020944,2]
[322073823,1712743838538,-2423.95,0.00020944,2]
[322073824,1712743838550,-320.74241418,0.00020979,2]
[322073825,1712743838560,-161.00915475,0.00020979,2]
[322073826,1712743838569,-12755.0,0.00020986,2]
[322073827,1712743838578,-2694.29669994,0.00020997,2]
[322073828,1712743838587,-1020.63944103,0.00020997,2]
[322073829,1712743838598,-1241.19748567,0.00020997,2]
[322073830,1712743838609,-155.0,0.00020997,2]
[322073831,1712743838618,-158.18091608,0.00020997,2]
[322073832,1712743838627,-246.28033513,0.00020997,2]
[322073833,1712743838637,-6225.54627846,0.00020997,2]
[322073834,1712743838647,-662.21118686,0.00020997,2]
[322073835,1712743838656,-233.3533178,0.00020998,2]
[322073836,1712743838665,-160.6631939,0.00020998,2]
[322073837,1712743838674,-155.0,0.00020998,2]
[322073838,1712743838683,-640.23975986,0.00020998,2]
[322073839,1712743838692,-193.57542793,0.00020998,2]
[322073840,1712743838701,-20163.40939977,0.00020998,2]
[322073841,1712743838710,-155.0,0.00020998,2]
[322073842,1712743838719,-156.76458102,0.00020998,2]
[322073843,1712743838728,-375.68452927,0.00020998,2]
[322073844,1712743838737,-166.51209388,0.00020998,2]
[322073845,1712743838745,-1440.75277659,0.00020998,2]
[322073846,1712743838755,-155.29884375,0.00020998,2]
[322073847,1712743838764,-535.05095744,0.00020998,2]
[322073848,1712743838773,-735.98049015,0.00020998,2]
[322073849,1712743838783,-270.79630459,0.00020998,2]
[322073850,1712743838795,-180.61306942,0.00020998,2]
[322073851,1712743838804,-624.22352962,0.00020998,2]
[322073852,1712743838813,-1761.90527738,0.00020998,2]
[322073853,1712743838822,-389.66291971,0.00020999,2]
[322073854,1712743838831,-233.79775183,0.00020999,2]
[322073855,1712743838840,-550.51311595,0.00020999,2]
[322073856,1712743838849,-262.97889526,0.00020999,2]
[322073857,1712743838858,-7788.54431486,0.00020999,4]
[322073858,1712743838867,-276658.70793228,0.00020999,2]
[322073859,1712743838876,-4242.79558182,0.00020999,2]
[322073860,1712743838886,-5319250.46990966,0.00021,2]
[322073861,1712743838895,-714.96210186,0.00021,2]
[322073862,1712743838904,-155.0,0.00021,2]
[322073863,1712743838914,-5646785.83806244,0.00021,2]
[322073864,1712743838924,-151.0,0.00021,2]
[322073865,1712743838933,-151.0,0.00021,2]
[322073866,1712743838942,-151.421921,0.00021,2]
[322073867,1712743838951,-151.0,0.00021,2]
[322073868,1712743838960,-155.86516788,0.00021,2]
[322073869,1712743838970,-151.0,0.00021,2]
[322073870,1712743838980,-151.0,0.00021,2]